fUSD/lending_fUSD_20251119
["ID","MTS","AMOUNT","RATE_DAILY","PERIOD"]
[394438906,1763573441081,-650.74094135,0.00040903,28]
[394438907,1763573441092,-461.87948093,0.00040921,5]
[394438909,1763573441102,-250.0,0.00040921,5]
[394438911,1763573441111,-156.99,0.00040923,14]
[394438914,1763573441120,-620.56,0.00040947,30]
[394438916,1763573441130,-900.0,0.00040959,2]
[394438918,1763573441139,-162.95415248,0.0004096,2]
[394438920,1763573441148,-150.0,0.0004096,30]
[394438922,1763573441157,-182.33581005,0.0004096,14]
[394438924,1763573441167,-12601.729568,0.00040979,4]
[394438926,1763573441176,-153.0,0.00040989,120]
[394438928,1763573441186,-153.0,0.00040989,120]
[394438930,1763573441196,-153.0,0.00040989,120]
[394438932,1763573441205,-153.0,0.00040989,120]
[394438934,1763573441214,-153.0,0.00040989,120]
[394438936,1763573441225,-153.0,0.00040989,120]
[394438938,1763573441234,-1000.0,0.00040989,30]
[394438940,1763573441243,-1000.0,0.00040989,30]
[394438942,1763573441253,-153.0,0.0004099,120]
[394438944,1763573441265,-153.0,0.0004099,120]
[394438946,1763573441275,-153.0,0.0004099,120]
[394438948,1763573441284,-153.0,0.0004099,120]
[394438950,1763573441292,-153.0,0.0004099,120]
[394438952,1763573441303,-153.0,0.0004099,120]
[394438954,1763573441312,-153.0,0.0004099,120]
[394438956,1763573441320,-153.0,0.0004099,120]
[394438958,1763573441331,-150.46,0.0004099,2]
[394438960,1763573441341,-150.46,0.0004099,2]
[394438962,1763573441350,-150.46,0.0004099,2]
[394438964,1763573441359,-150.46,0.0004099,2]
[394438966,1763573441368,-150.46,0.0004099,2]
[394438968,1763573441376,-150.46,0.0004099,2]
[394438970,1763573441386,-474.41194182,0.0004099,7]
[394438972,1763573441395,-474.41194182,0.0004099,7]
[394438974,1763573441404,-151.0,0.00040997,14]
[394438976,1763573441414,-1023.89258802,0.00040999,30]
[394438978,1763573441424,-155.43248223,0.00041,31]
[394438980,1763573441433,-156.0,0.00041,90]
[394438982,1763573441443,-13186.29797954,0.00041,7]
[394438984,1763573441452,-164.8,0.00041,100]
[394438986,1763573441462,-11288595.57854441,0.00041,2]
[394438999,1763573441571,-642.89775,0.00041,2]
[394439001,1763573441582,-896.94,0.00041,2]
[394439004,1763573441598,-4976.23277107,0.00041,2]
[394439006,1763573441609,-820.72916712,0.00041,2]
[394439008,1763573441620,-14798.59632085,0.00041,2]
[394439013,1763573441653,5000.0,0.00042193,30]
[394439019,1763573441705,-360.42425931,0.00038253,2]
[394439022,1763573441716,-139.57574069,0.00038253,2]
[394439024,1763573441727,-283.31649175,0.0003828,2]
[394439026,1763573441738,-216.68350825,0.0003828,2]
[394439028,1763573441747,-150.0,0.00038308,2]
[394439030,1763573441756,-984.6478549,0.00040903,15]
[394439032,1763573441765,-12867.57517091,0.00041,2]
[394439033,1763573441776,-501.94320165,0.00041,2]
[394439034,1763573441787,-179249.99999996,0.00041,2]
[394439035,1763573441799,-1346279.88795513,0.00041,2]
[394439036,1763573441816,-206896.58040197,0.00041,2]
[394439037,1763573441827,-695.24743659,0.00041,2]
[394439039,1763573441849,-2705.55170041,0.00041,2]
[394439041,1763573441860,-865.13590181,0.00041,2]
[394439043,1763573441871,-2518.25513221,0.00041,2]
[394439046,1763573441885,-19497.91863516,0.00041,2]
[394439048,1763573441899,-54102.04832036,0.00041,2]
[394439204,1763573443447,-872.26117996,0.00041,2]
[394439211,1763573443504,-467.5619357,0.00041,2]
[394439213,1763573443515,-575856.97813534,0.00041,2]
[394439368,1763573445096,239.03873362,0.00042193,120]
[394439401,1763573445402,464.39258401,0.00042193,120]
[394439411,1763573445549,500.0,0.00042193,120]
[394439441,1763573445790,510.13613327,0.00042193,120]
[394439471,1763573446044,-10891.64815684,0.00041,2]
[394439473,1763573446055,-374013.18178452,0.00041,2]
[394439478,1763573446101,-388.92219894,0.00041,2]
[394439480,1763573446112,-10776.9347374,0.00041,2]
[394439493,1763573446220,187.16383802,0.00042193,120]
[394439497,1763573446238,-450.0750025,0.00041,2]
[394439500,1763573446249,-6714.98335691,0.00041,2]
[394439504,1763573446275,-1218.6,0.00041,2]
[394439506,1763573446286,-339.2552879,0.00041,2]
[394439523,1763573446445,-1319.2825045,0.00041,2]
[394439612,1763573447229,498.37451778,0.00042193,120]
[394439650,1763573447826,206.55331327,0.00042193,120]
[394439684,1763573448156,448.61374796,0.00042193,120]
[394439847,1763573450629,346.15316818,0.00042193,120]
[394439848,1763573451970,245.56212169,0.00042193,120]
[394439849,1763573453240,380.01972603,0.00042193,120]
[394439850,1763573455028,500.0,0.00042193,120]
[394439851,1763573455278,500.0,0.00042193,120]
[394439852,1763573456467,454.06018166,0.00042193,120]
[394439853,1763573456887,268.52539408,0.00042193,120]
[394439854,1763573457889,164.0716568,0.00042193,120]
[394439855,1763573460718,489.80269308,0.00042193,120]
[394439856,1763573464076,626.06126112,0.00042193,120]
[394439857,1763573464373,221.47981152,0.00042193,120]
[394439858,1763573465281,393.27917693,0.00042193,120]
[394439859,1763573466025,264.5722665,0.00042193,120]
[394439860,1763573466103,437.97437453,0.00042193,120]
[394439861,1763573466555,605.78363508,0.00042193,120]
[394439862,1763573467485,251.1104404,0.00042193,120]
[394439863,1763573467803,214.30781487,0.00042193,120]
[394439864,1763573468523,291.85298003,0.00042193,120]
[394439865,1763573468896,500.0,0.00042193,30]
[394439866,1763573469157,523.56696654,0.00042193,30]
[394439867,1763573470452,325.86240249,0.00042193,120]
[394439868,1763573470501,500.0,0.00042193,120]
[394439869,1763573470756,448.11927132,0.00042193,120]
[394439870,1763573471133,186.72385372,0.00042193,120]
[394439871,1763573472515,500.26562102,0.00042193,120]
[394439872,1763573474710,424.67821338,0.00042193,120]
[394439873,1763573474841,473.77610165,0.00042193,120]
[394439874,1763573476770,486.99498468,0.00042193,120]
[394439875,1763573477654,199.69750835,0.00042193,120]
[394439876,1763573477865,381.99031383,0.00042193,120]
[394439877,1763573481043,440.12669372,0.00042193,120]
[394439878,1763573481988,427.7179967,0.00042193,120]
[394439879,1763573482574,452.05858587,0.00042193,120]
[394439880,1763573483212,438.87000109,0.00042193,120]
[394439881,1763573484193,371.78035084,0.00042193,120]
[394439882,1763573484637,409.18358278,0.00042193,120]
[394439883,1763573484787,500.0,0.00042193,120]
[394439884,1763573485040,500.0,0.00042193,120]
[394439885,1763573485328,476.14,0.00042193,120]
[394439886,1763573485695,232.9305072,0.00042193,120]
[394439887,1763573486254,222.48925065,0.00042193,120]
[394439888,1763573486414,627.19012733,0.00042193,120]
[394439889,1763573486671,280.42093801,0.00042193,120]
[394439890,1763573488088,450.08063628,0.00042193,120]
[394439891,1763573488439,399.50795338,0.00042193,120]
[394439892,1763573489034,439.34493621,0.00042193,120]
[394439893,1763573489505,186.80813381,0.00042193,120]
[394439894,1763573490581,524.5404674,0.00042193,120]
[394439895,1763573490797,424.63797975,0.00042193,120]
[394439896,1763573492586,393.15466056,0.00042193,120]
[394439897,1763573492689,500.0,0.00042193,120]
[394439898,1763573493075,392.09342097,0.00042193,120]
[394439899,1763573494262,150.88751324,0.00042193,120]
[394439900,1763573494431,419.95977767,0.00042193,120]
[394439901,1763573494652,500.0,0.00042193,120]
[394439902,1763573494742,431.77022729,0.00042193,120]
[394439903,1763573494774,338.77880243,0.00042193,120]
[394439904,1763573495285,210.12110646,0.00042193,120]
[394439905,1763573495748,519.66939599,0.00042193,120]
[394439906,1763573496223,296.30331645,0.00042193,120]
[394439907,1763573496315,237.3438387,0.00042193,120]
[394439908,1763573496696,445.48510357,0.00042193,120]
[394439909,1763573497936,449.39622437,0.00042193,120]
[394439910,1763573498040,349.1748171,0.00042193,120]
[394439911,1763573500096,240.49263984,0.00042193,120]
[394439912,1763573501005,463.38070356,0.00042193,120]
[394439913,1763573501435,369.35,0.00042193,120]
[394439914,1763573501757,190.14059733,0.00042193,120]
[394439915,1763573501788,409.98417483,0.00042193,120]
[394439916,1763573502026,500.0,0.00042193,120]
[394439917,1763573502306,523.48147347,0.00042193,120]
[394439918,1763573502564,513.92205601,0.00042193,120]
[394439919,1763573503352,244.01938206,0.00042193,120]
[394439920,1763573504279,492.09688731,0.00042193,120]
[394439921,1763573504884,225.86402973,0.00042193,120]
[394439922,1763573504969,402.25941024,0.00042193,120]
[394439923,1763573505545,165.75804893,0.00042193,120]
[394439924,1763573505815,294.28615987,0.00042193,120]
[394439925,1763573505971,500.0,0.00042193,120]
[394439926,1763573506229,500.0,0.00042193,120]
[394439927,1763573506454,436.79069758,0.00042193,120]
[394439928,1763573506486,500.0,0.00042193,120]
[394439929,1763573506720,500.0,0.00042193,120]
[394439930,1763573506753,445.26812515,0.00042193,120]
[394439931,1763573506988,500.0,0.00042193,120]
[394439932,1763573507292,500.0,0.00042193,120]
[394439933,1763573507550,615.58,0.00042193,120]
[394439934,1763573507674,245.37252205,0.00042193,120]
[394439935,1763573508521,406.25455085,0.00042193,120]
[394439936,1763573508615,396.41864226,0.00042193,120]
[394439937,1763573509817,500.0,0.00042193,120]
[394439938,1763573509924,397.00511263,0.00042193,120]
[394439939,1763573509955,302.75283562,0.00042193,120]
[394439940,1763573510094,500.0,0.00042193,120]
[394439941,1763573510593,361.2155627,0.00042193,120]
[394439942,1763573511320,500.0,0.00042193,120]
[394439943,1763573511492,185.34090179,0.00042193,120]
[394439944,1763573511617,354.65232388,0.00042193,120]
[394439945,1763573512607,205.67932501,0.00042193,120]
[394439946,1763573513604,356.25405018,0.00042193,120]
[394439947,1763573513636,214.0703055,0.00042193,30]
[394439948,1763573514534,225.95263701,0.00042193,120]
[394439949,1763573516573,392.02559928,0.00042193,120]
[394439950,1763573516976,415.31329255,0.00042193,120]
[394439951,1763573518882,172.64898781,0.00042193,120]
[394439952,1763573518941,602.0194594,0.00042193,120]
[394439953,1763573518991,500.0,0.00042193,120]
[394439954,1763573519126,250.0,0.00017,2]
[394439955,1763573519319,500.0,0.00042193,120]
[394439956,1763573519570,500.0,0.00042193,120]
[394439957,1763573519666,179.83973401,0.00042193,120]
[394439958,1763573520219,236.56582418,0.00019,2]
[394439959,1763573520242,63.43417582,0.00019,2]
[394439960,1763573520345,235.78116711,0.00042193,120]
[394439961,1763573522632,483.97806621,0.00042193,120]
[394439962,1763573523953,371.88865723,0.00042193,120]
[394439963,1763573524053,500.0,0.00042193,120]
[394439964,1763573524374,500.0,0.00042193,120]
[394439965,1763573524541,442.58360602,0.00042193,120]
[394439966,1763573524647,500.0,0.00042193,120]
[394439967,1763573524915,500.0,0.00042193,120]
[394439968,1763573525181,500.0,0.00042193,120]
[394439969,1763573525457,437.36,0.00042193,120]
[394439970,1763573526350,341.45495468,0.00042193,120]
[394439971,1763573527844,409.06292259,0.00042193,120]
[394439972,1763573528115,290.68171235,0.00042193,120]
[394439973,1763573528398,379.27824293,0.00042193,120]
[394439974,1763573529342,326.17199727,0.00042193,120]
[394439975,1763573529433,205.53471708,0.00042193,120]
[394439976,1763573529555,300.86230283,0.00042193,120]
[394439977,1763573529752,245.5209014,0.00042193,120]
[394439978,1763573531136,501.01511006,0.00042193,120]
[394439979,1763573531399,488.37895848,0.00042193,120]
[394439980,1763573531601,446.33821727,0.00042193,30]
[394439981,1763573532222,255.81242552,0.00042193,120]
[394439982,1763573533291,433.66551361,0.00042193,120]
[394439983,1763573534901,238.47931075,0.00042193,120]
[394439984,1763573535507,478.20779645,0.00042193,120]
[394439985,1763573535578,179.89496015,0.00042193,120]
[394439986,1763573535941,323.19695629,0.00042193,120]
[394439987,1763573536798,179.01237116,0.00042193,120]
[394439988,1763573537181,500.0,0.00042193,120]
[394439989,1763573537426,488.8594673,0.00042193,120]
[394439990,1763573537457,226.36848267,0.00042193,120]
[394439991,1763573538510,500.0,0.00042193,120]
[394439992,1763573538748,500.0,0.00042193,120]
[394439993,1763573538779,420.12814624,0.00042193,120]
[394439994,1763573539267,361.43018573,0.00042193,120]
[394439995,1763573539444,397.35906748,0.00042193,120]
[394439996,1763573540104,337.21064141,0.00042193,120]
[394439997,1763573540973,363.44820706,0.00042193,120]
[394439998,1763573541654,452.7556466,0.00042193,120]
[394439999,1763573542024,512.24890938,0.00042193,120]
[394440000,1763573542252,471.51041998,0.00042193,120]
[394440001,1763573542997,278.49965235,0.00042193,120]
[394440002,1763573543691,484.80469663,0.00042193,120]
[394440003,1763573543756,414.91430283,0.00042193,120]
[394440004,1763573544535,328.77134252,0.00042193,120]
[394440005,1763573544566,251.35423525,0.00042193,120]
[394440006,1763573544744,473.55937362,0.00042193,120]
[394440007,1763573546118,241.7769013,0.00042193,120]
[394440008,1763573546192,497.33055996,0.00042193,120]
[394440009,1763573546341,445.29094182,0.00042193,120]
[394440010,1763573546630,378.55434863,0.00042193,120]
[394440011,1763573547210,277.63406746,0.00042193,120]
[394440012,1763573548206,500.0,0.00042193,120]
[394440013,1763573548328,187.01095908,0.00042193,120]
[394440014,1763573548453,500.0,0.00042193,120]
[394440015,1763573548564,382.44331407,0.00042193,120]
[394440016,1763573549357,170.31681568,0.00042193,120]
[394440017,1763573549468,358.01007756,0.00042193,120]
[394440018,1763573549677,423.65256124,0.00042193,120]
[394440019,1763573549874,391.87760341,0.00042193,120]
[394440020,1763573550355,362.72910688,0.00042193,120]
[394440021,1763573550795,237.6608922,0.00042193,120]
[394440022,1763573551391,312.03461035,0.00042193,120]
[394440023,1763573551422,309.77025566,0.00042193,120]
[394440024,1763573551452,477.35481788,0.00042193,120]
[394440025,1763573551752,171.97866377,0.00042193,120]
[394440026,1763573553007,252.40515235,0.00042193,120]
[394440027,1763573553035,310.49271727,0.00042193,120]
[394440028,1763573553357,500.0,0.00042193,120]
[394440029,1763573553431,274.41771509,0.00042193,120]
[394440030,1763573553604,500.0,0.00042193,120]
[394440031,1763573553634,229.07627675,0.00042193,120]
[394440032,1763573553862,500.0,0.00042193,120]
[394440033,1763573554147,500.0,0.00042193,120]
[394440034,1763573554378,500.0,0.00042193,120]
[394440035,1763573554443,364.97037724,0.00042193,120]
[394440036,1763573554716,500.0,0.00042193,120]
[394440037,1763573554844,500.0,0.00042193,120]
[394440038,1763573555098,276.75943537,0.00042193,120]
[394440039,1763573555128,500.0,0.00042193,120]
[394440040,1763573555348,500.0,0.00042193,120]
[394440041,1763573555377,413.52775349,0.00042193,120]
[394440042,1763573555617,500.0,0.00042193,120]
[394440043,1763573555901,500.0,0.00042193,120]
[394440044,1763573556135,232.74390436,0.00042193,120]
[394440045,1763573556176,500.0,0.00042193,120]
[394440046,1763573556415,500.0,0.00042193,120]
[394440047,1763573556445,237.50718716,0.00042193,120]
[394440048,1763573556475,380.24866626,0.00042193,120]
[394440049,1763573556661,500.0,0.00042193,120]
[394440050,1763573556690,431.21920288,0.00042193,120]
[394440051,1763573557009,500.0,0.00042193,120]
[394440052,1763573557252,481.73999999,0.00042193,120]
[394440053,1763573559048,441.29040445,0.00042193,120]
[394440054,1763573560103,345.10849369,0.00042193,120]
[394440055,1763573560628,336.19926331,0.00042193,120]
[394440056,1763573561026,232.90338893,0.00042193,120]
[394440057,1763573561055,515.67328426,0.00042193,120]
[394440058,1763573561534,278.22680086,0.00042193,120]
[394440059,1763573562045,211.61920942,0.00042193,120]
[394440060,1763573562436,250.18780994,0.00042193,120]
[394440061,1763573563252,171.26321991,0.00042193,120]
[394440062,1763573563951,498.57037946,0.00042193,120]
[394440063,1763573565017,396.3478173,0.00042193,120]
[394440064,1763573565129,351.11321179,0.00042193,120]
[394440065,1763573565171,385.18906536,0.00042193,120]
[394440066,1763573565744,546.47663143,0.00042193,120]
[394440067,1763573566150,323.28311905,0.00042193,120]
[394440068,1763573566934,508.55628932,0.00042193,120]
[394440069,1763573567268,500.0,0.00042193,120]
[394440070,1763573567500,218.5781792,0.00042193,120]
[394440071,1763573568210,513.01813234,0.00042193,120]
[394440072,1763573569075,304.16164881,0.00042193,120]
[394440073,1763573569172,383.06509793,0.00042193,120]
[394440074,1763573569358,279.17317474,0.00042193,120]
[394440075,1763573569650,317.00894727,0.00042193,120]
[394440076,1763573570246,212.40479605,0.00042193,120]
[394440077,1763573570447,466.52783548,0.00042193,120]
[394440078,1763573570826,343.42964198,0.00042193,120]
[394440079,1763573571507,497.84235421,0.00042193,120]
[394440080,1763573572220,500.0,0.00042193,120]
[394440081,1763573572465,500.0,0.00042193,120]
[394440082,1763573572705,500.0,0.00042193,120]
[394440083,1763573572881,409.01667769,0.00042193,120]
[394440084,1763573572953,500.0,0.00042193,120]
[394440085,1763573573205,500.0,0.00042193,120]
[394440086,1763573573559,244.34,0.00042193,120]
[394440087,1763573573621,486.14542721,0.00042193,120]
[394440088,1763573574738,417.28972315,0.00042193,120]
[394440089,1763573575450,358.12195862,0.00042193,120]
[394440090,1763573576568,338.19466035,0.00042193,120]
[394440091,1763573576749,468.58675013,0.00042193,120]
[394440092,1763573578705,432.51779699,0.00042193,120]
[394440093,1763573579424,285.21305816,0.00042193,120]
[394440094,1763573579672,418.28195512,0.00042193,120]
[394440095,1763573579749,475.55961856,0.00042193,120]
[394440096,1763573580381,465.76125576,0.00042193,120]
[394440097,1763573580450,455.18065567,0.00042193,120]
[394440098,1763573580905,338.39277042,0.00042193,120]
[394440099,1763573581300,185.48945732,0.00042193,120]
[394440100,1763573582698,196.00975041,0.00042193,120]
[394440101,1763573583216,345.49710939,0.00042193,120]
[394440102,1763573583534,349.44065693,0.00042193,120]
[394440103,1763573585617,584.78091388,0.00042193,120]
[394440104,1763573586015,249.97465817,0.00042193,120]
[394440105,1763573586355,337.88955677,0.00042193,120]
[394440106,1763573586670,486.76478532,0.00042193,120]
[394440107,1763573586917,236.91711412,0.00042193,120]
[394440108,1763573587038,173.12598772,0.00042193,120]
[394440109,1763573587277,316.29543922,0.00042193,120]
[394440110,1763573588271,236.10563328,0.00042193,120]
[394440111,1763573588887,196.03481737,0.00042193,120]
[394440112,1763573588978,427.42043126,0.00042193,120]
[394440113,1763573589197,186.77743586,0.00042193,120]
[394440114,1763573593179,536.69584334,0.00042193,120]
[394440115,1763573593393,188.71531619,0.00042193,120]
[394440116,1763573593662,286.4807329,0.00042193,120]
[394440117,1763573594988,272.39124063,0.00042193,60]
[394440118,1763573596566,500.0,0.00042193,120]
[394440119,1763573596598,364.38601455,0.00042193,120]
[394440120,1763573596804,500.0,0.00042193,120]
[394440121,1763573597042,380.98,0.00042193,120]
[394440122,1763573598155,500.0,0.00042193,30]
[394440123,1763573598390,500.0,0.00042193,30]
[394440124,1763573598450,221.68361827,0.00042193,120]
[394440125,1763573598627,500.0,0.00042193,30]
[394440126,1763573598875,365.18,0.00042193,30]
[394440127,1763573600105,502.40352578,0.00042193,120]
[394440128,1763573602081,288.33741914,0.00042193,120]
[394440129,1763573602218,514.82685678,0.00042193,120]
[394440130,1763573604283,500.0,0.00042193,30]
[394440131,1763573604358,247.76350534,0.00042193,120]
[394440132,1763573604431,330.19150088,0.00042193,120]
[394440133,1763573604532,507.76508269,0.00042193,30]
[394440134,1763573606562,322.18430438,0.00042193,120]
[394440135,1763573606630,493.62816095,0.00042193,120]
[394440136,1763573606766,367.87037155,0.00042193,120]
[394440137,1763573607762,529.83107834,0.00042193,120]
[394440138,1763573608338,592.6870274,0.00042193,120]
[394440139,1763573608533,435.44276129,0.00042193,120]
[394440140,1763573608699,342.16410831,0.00042193,120]
[394440141,1763573609312,428.49746287,0.00042193,120]
[394440142,1763573610280,199.33773722,0.00042193,120]
[394440143,1763573610617,242.18661131,0.00042193,120]
[394440144,1763573610978,234.8191221,0.00042193,120]
[394440145,1763573612574,471.93082723,0.00042193,120]
[394440146,1763573612704,345.779166,0.00042193,120]
[394440147,1763573612797,428.06825796,0.00042193,120]
[394440148,1763573615366,288.23209763,0.00042193,120]
[394440149,1763573615901,420.83933013,0.00042193,120]
[394440150,1763573616125,320.34962504,0.00042193,120]
[394440151,1763573616754,470.7318121,0.00042193,120]
[394440152,1763573618328,537.47254082,0.00042193,120]
[394440153,1763573619469,500.0,0.00042193,120]
[394440154,1763573619703,184.69774541,0.00042193,120]
[394440155,1763573620555,465.50828261,0.00042193,120]
[394440156,1763573621264,331.14297439,0.00042193,120]
[394440157,1763573621752,567.59585847,0.00042193,120]
[394440158,1763573623601,547.62197003,0.00042193,120]
[394440159,1763573623920,556.83881462,0.00042193,120]
[394440160,1763573624333,500.0,0.00042193,120]
[394440161,1763573624490,197.45402903,0.00042193,120]
[394440162,1763573624580,191.61876624,0.00042193,120]
[394440163,1763573625518,201.90413421,0.00042193,120]
[394440164,1763573625932,396.91046515,0.00042193,120]
[394440165,1763573625986,273.56364958,0.00042193,120]
[394440166,1763573627916,205.83998727,0.00042193,120]
[394440167,1763573628562,321.8662039,0.00042193,120]
[394440168,1763573629317,441.44475209,0.00042193,120]
[394440169,1763573630421,503.04696778,0.00042193,120]
[394440170,1763573630452,165.7145667,0.00042193,120]
[394440171,1763573631255,216.31133696,0.00042193,120]
[394440172,1763573631921,244.83542575,0.00042193,120]
[394440173,1763573632302,428.44055497,0.00042193,120]
[394440174,1763573632377,414.89717573,0.00042193,120]
[394440175,1763573633487,432.85265322,0.00042193,120]
[394440176,1763573634363,438.3945084,0.00042193,120]
[394440177,1763573634825,413.4708983,0.00042193,120]
[394440178,1763573635257,378.44494061,0.00042193,120]
[394440179,1763573636384,457.38256884,0.00042193,120]
[394440180,1763573636554,241.98505376,0.00042193,120]
[394440181,1763573637222,294.0572383,0.00042193,120]
[394440182,1763573637777,168.25985303,0.00042193,120]
[394440183,1763573638410,390.87505824,0.00042193,120]
[394440184,1763573638934,500.0,0.00042193,120]
[394440185,1763573639186,500.0,0.00042193,120]
[394440186,1763573639271,274.70225323,0.00042193,120]
[394440187,1763573639438,500.0,0.00042193,120]
[394440188,1763573639604,500.0,0.00042193,120]
[394440189,1763573639705,500.0,0.00042193,120]
[394440190,1763573639829,500.0,0.00042193,120]
[394440191,1763573639961,500.0,0.00042193,120]
[394440192,1763573640117,500.0,0.00042193,120]
[394440193,1763573640275,297.62,0.00042193,120]
[394440194,1763573640467,265.56,0.00042193,120]
[394440195,1763573640882,178.58293362,0.00042193,120]
[394440196,1763573642230,217.71556248,0.00042193,120]
[394440197,1763573642826,285.65209473,0.00042193,120]
[394440198,1763573646767,248.26019657,0.00042193,120]
[394440199,1763573647332,230.54782508,0.00042193,120]
[394440200,1763573647452,355.3856724,0.00042193,120]
[394440201,1763573647824,305.94568234,0.00042193,120]
[394440202,1763573650109,242.778971,0.00042193,120]
[394440203,1763573651426,500.0,0.00042193,120]
[394440204,1763573651763,629.92,0.00042193,120]
[394440205,1763573653494,448.96532158,0.00042193,120]
[394440206,1763573654100,513.69645521,0.00042193,120]
[394440207,1763573656241,235.85105249,0.00042199,120]
[394440208,1763573658702,452.05141849,0.00042199,120]
[394440209,1763573659390,278.1470092,0.00042199,120]
[394440210,1763573659937,227.89721671,0.00042199,120]
[394440211,1763573660474,414.62464631,0.00042199,120]
[394440212,1763573664187,219.89866171,0.00042199,120]
[394440213,1763573664359,168.41419942,0.00042199,120]
[394440214,1763573665913,318.08116775,0.00042199,120]
[394440215,1763573666072,303.55772679,0.00042199,120]
[394440216,1763573667854,500.0,0.00042199,120]
[394440217,1763573667936,496.64956471,0.00042199,120]
[394440218,1763573668234,500.0,0.00042199,120]
[394440219,1763573669395,264.84853592,0.00042199,120]
[394440220,1763573669491,508.55362481,0.00042199,120]
[394440221,1763573669770,186.12682362,0.00042199,120]
[394440222,1763573669997,442.48328582,0.00042199,120]
[394440223,1763573671476,253.5516643,0.00042199,60]
[394440224,1763573671793,500.0,0.00042199,120]
[394440225,1763573672032,500.0,0.00042199,120]
[394440226,1763573672268,500.0,0.00042199,120]
[394440227,1763573672508,476.32,0.00042199,120]
[394440228,1763573677952,356.58062367,0.00042199,120]
[394440229,1763573679780,437.61082258,0.00042199,120]
[394440230,1763573681683,380.86764275,0.00042199,120]
[394440231,1763573682071,468.88948069,0.00042199,120]
[394440232,1763573683585,414.13585537,0.00042199,120]
[394440233,1763573683968,354.6837451,0.00042199,120]
[394440234,1763573684858,317.93809993,0.00042199,120]
[394440235,1763573685446,348.58035786,0.00042199,120]
[394440236,1763573686232,344.96913075,0.00042199,120]
[394440237,1763573686736,528.89938949,0.00042199,120]
[394440238,1763573691669,373.92556327,0.00042199,120]
[394440239,1763573691854,255.40114346,0.00042199,120]
[394440240,1763573692145,229.00190122,0.00042199,120]
[394440241,1763573693757,452.33832068,0.00042199,120]
[394440242,1763573695069,312.68457083,0.00042199,120]
[394440243,1763573696936,509.97611982,0.00042199,120]
[394440244,1763573697438,448.37337478,0.00042199,120]
[394440245,1763573697625,240.65967207,0.00042199,120]
[394440246,1763573699326,253.83119595,0.00042199,120]
[394440247,1763573707490,245.20648721,0.00042199,120]
[394440248,1763573709428,435.20631822,0.00042199,120]
[394440255,1763573723036,334.47813631,0.00042199,120]
[394440256,1763573725287,225.63496924,0.00042199,120]
[394440257,1763573734954,373.12516426,0.00042199,120]
[394440258,1763573739719,420.56756329,0.00042199,120]
[394440259,1763573743794,179.30513153,0.00042199,120]
[394440260,1763573743849,441.64024915,0.00042199,120]
[394440261,1763573747392,456.39236329,0.00042199,120]
[394440262,1763573752433,251.93148959,0.00042199,120]
[394440263,1763573752585,460.89926859,0.00042199,120]
[394440264,1763573754479,429.14922598,0.00042199,120]
[394440265,1763573754684,171.25291851,0.00042199,120]
[394440266,1763573756515,318.83594115,0.00042199,120]
[394440267,1763573758858,488.91654031,0.00042199,120]
[394440268,1763573762657,417.22442308,0.00042199,120]